fUST/lending_fUST_20250926
["ID","MTS","AMOUNT","RATE_DAILY","PERIOD"]
[387809951,1758886122950,163.31232933,0.00024,2]
[387809952,1758886124518,810.00015863,0.000203,2]
[387809953,1758886124970,230.98526018,0.00023,2]
[387809954,1758886124992,2119.31554656,0.00023,2]
[387809955,1758886125019,2880.68445344,0.000215,2]
[387809956,1758886125041,5000.0,0.000215,2]
[387809957,1758886125558,-377.0581249,0.000215,2]
[387809958,1758886128750,-242.44828038,0.000215,2]
[387809959,1758886134467,-4160.79993745,0.000215,2]
[387809960,1758886170490,376.16810556,0.000199,2]
[387809961,1758886226233,155.37265907,0.00030808,20]
[387810007,1758886232626,-376.16810556,0.0002212,2]
[387810009,1758886232636,-376.16810556,0.00024341,2]
[387810011,1758886232646,-1200.0,0.00025999,2]
[387810013,1758886232655,-7881.412427,0.00026,30]
[387810014,1758886232665,-376.16810556,0.00026561,5]
[387810016,1758886232674,-300.0,0.00026574,2]
[387810018,1758886232683,-5000.0,0.00027043,2]
[387810021,1758886232692,-1475.5069809,0.00027316,2]
[387810024,1758886232701,-843.0,0.00027411,2]
[387810026,1758886232711,-11939.0655309,0.00027412,2]
[387810028,1758886232719,-666.0,0.00027795,2]
[387810030,1758886232731,-160.0,0.00027808,2]
[387810031,1758886232741,-500.0,0.00027827,7]
[387810032,1758886232751,-544.72289,0.0002783,2]
[387810033,1758886232761,-500.0,0.000279,5]
[387810034,1758886232770,-407.3653512,0.0002807,2]
[387810036,1758886232780,-323.05499693,0.0002807,2]
[387810037,1758886232789,-500.0,0.0002807,2]
[387810039,1758886232798,-500.0,0.0002807,2]
[387810041,1758886232808,-500.0,0.0002807,2]
[387810043,1758886232818,-500.0,0.0002807,2]
[387810044,1758886232827,-500.0,0.0002807,2]
[387810045,1758886232837,-500.0,0.0002807,2]
[387810046,1758886232847,-500.0,0.0002807,2]
[387810047,1758886232858,-5035.6532854,0.00028071,2]
[387810048,1758886232869,-500.0,0.000281,5]
[387810049,1758886232879,-500.0,0.000281,2]
[387810050,1758886232888,-543.03333736,0.000281,5]
[387810051,1758886232899,-500.0,0.000281,5]
[387810052,1758886232909,-500.0,0.000281,5]
[387810053,1758886232919,-500.0,0.000281,5]
[387810054,1758886232928,-1680.0,0.00028262,2]
[387810055,1758886232940,-1000.0,0.00028448,5]
[387810056,1758886232950,-183.185783,0.00028457,60]
[387810057,1758886232959,-500.0,0.0002854,5]
[387810058,1758886232968,-176.028918,0.00028554,20]
[387810059,1758886232978,-1000.0,0.0002859,30]
[387810060,1758886232989,-1000.0,0.00028648,5]
[387810061,1758886232999,-329.89320392,0.00028648,2]
[387810062,1758886233009,-1000.0,0.00028648,5]
[387810063,1758886233022,-1000.0,0.00028648,5]
[387810064,1758886233033,-1000.0,0.00028648,5]
[387810065,1758886233042,-190.2173757,0.00028741,2]
[387810066,1758886233052,-420.0,0.00028742,2]
[387810067,1758886233062,-376.16810556,0.00028781,10]
[387810068,1758886233072,-500.0,0.00028833,5]
[387810069,1758886233083,-500.90471863,0.00028996,5]
[387810070,1758886233092,-1000.0,0.00029088,5]
[387810071,1758886233102,-1500.0,0.00029196,5]
[387810072,1758886233111,-1008.58252175,0.00029196,5]
[387810073,1758886233121,-1500.0,0.00029196,5]
[387810074,1758886233131,-1500.0,0.00029196,5]
[387810075,1758886233141,-1000.0,0.00029381,5]
[387810076,1758886233151,-6270.9775951,0.0002941,2]
[387810077,1758886233161,-804.86574371,0.00029537,2]
[387810078,1758886233171,-160.0,0.00029724,2]
[387810079,1758886233180,-2000.0,0.00029744,5]
[387810080,1758886233190,-2000.0,0.00029744,5]
[387810081,1758886233200,-2000.0,0.00029744,5]
[387810082,1758886233210,-429.57590098,0.0002982,2]
[387810083,1758886233219,-613.85695652,0.0002982,2]
[387810084,1758886233229,-1500.0,0.00029929,5]
[387810085,1758886233239,-165.169,0.0003,24]
[387810086,1758886233248,-1000.0,0.0003,3]
[387810087,1758886233258,-163.0,0.0003,14]
[387810088,1758886233267,-500.0,0.00030003,30]
[387810089,1758886233277,-260.0,0.00030272,2]
[387810090,1758886233392,-460.01,0.00030277,30]
[387810091,1758886233402,-500.0,0.00030292,5]
[387810092,1758886233412,-1523.00889075,0.00030292,5]
[387810093,1758886233422,-1508.35320698,0.00030477,5]
[387810094,1758886233433,-1000.0,0.000305,3]
[387810095,1758886233442,-204.59895898,0.0003065,2]
[387810096,1758886233453,-501.70713422,0.00030733,5]
[387810097,1758886233462,-155.0,0.00030808,2]
[387810098,1758886233471,-1437.19272375,0.00030808,2]
[387810099,1758886233482,-360.0,0.0003082,2]
[387810100,1758886233492,-376.16810556,0.00031001,15]
[387810101,1758886233502,-587.0,0.00031087,2]
[387810102,1758886233512,-500.0,0.000313,5]
[387810103,1758886233522,-500.0,0.000313,5]
[387810104,1758886233531,-460.0,0.00031368,2]
[387810105,1758886233541,-1000.0,0.00031848,5]
[387810106,1758886233551,-506.0676098,0.00031848,5]
[387810107,1758886233561,-620.0,0.00031916,2]
[387810108,1758886233571,-177.4108125,0.00032,120]
[387810109,1758886233580,-177.4108125,0.000323,120]
[387810110,1758886233589,-1500.0,0.00032396,5]
[387810111,1758886233599,-177.4108125,0.000326,120]
[387810112,1758886233609,-500.0,0.00032697,7]
[387810113,1758886233619,-5000.0,0.00032782,4]
[387810114,1758886233628,-1718.30360392,0.00032794,2]
[387810115,1758886233637,-611.74,0.00032876,120]
[387810116,1758886233647,-1043.053731,0.00032877,2]
[387810117,1758886233656,-2000.0,0.00032944,5]
[387810118,1758886233666,-500.0,0.0003313,7]
[387810119,1758886233676,-376.16810556,0.00033222,20]
[387810120,1758886233685,-804.86574371,0.00033453,2]
[387810121,1758886233695,-2500.0,0.00033492,5]
[387810122,1758886233705,-823.0,0.00033623,2]
[387810123,1758886233714,-611.74,0.00033698,120]
[387810124,1758886233723,-3000.0,0.0003404,5]
[387810125,1758886233733,-334.24756958,0.000344,5]
[387810126,1758886233743,-611.74,0.0003452,120]
[387810127,1758886233752,-160.0,0.00034522,2]
[387810128,1758886233762,-233.71402077,0.00034535,2]
[387810129,1758886233772,-160.0,0.00034535,2]
[387810130,1758886233782,-160.0,0.00034535,2]
[387810131,1758886233792,-160.0,0.00034535,2]
[387810132,1758886233802,-2764.42834004,0.00034588,5]
[387810133,1758886233811,-153.0,0.00034832,2]
[387810134,1758886233821,-153.0,0.00034832,2]
[387810135,1758886233830,-153.0,0.00034832,2]
[387810136,1758886233840,-153.0,0.00034832,2]
[387810137,1758886233850,-153.0,0.00034832,2]
[387810138,1758886233862,-153.0,0.00034832,2]
[387810139,1758886233872,-153.0,0.00034832,2]
[387810140,1758886233881,-153.0,0.00034832,2]
[387810141,1758886233891,-153.0,0.00034832,2]
[387810142,1758886233903,-153.0,0.00034832,2]
[387810143,1758886233912,-153.0,0.00034851,2]
[387810144,1758886233921,-153.0,0.00034851,2]
[387810145,1758886233931,-611.74,0.00035342,120]
[387810146,1758886233942,-168.0,0.00035409,2]
[387810147,1758886233952,-376.16810556,0.00035442,24]
[387810148,1758886233962,-168.0,0.00035528,2]
[387810149,1758886233972,-3862.31692572,0.00035767,2]
[387810150,1758886233982,-2452.97239824,0.00035767,2]
[387810151,1758886233992,-168.0,0.00035847,2]
[387810152,1758886234001,-168.0,0.00035889,7]
[387810153,1758886234010,-266.16672361,0.00035922,2]
[387810154,1758886234020,-660.95478307,0.0003593,2]
[387810155,1758886234029,-168.0,0.00035934,2]
[387810156,1758886234039,-168.0,0.00035957,7]
[387810157,1758886234048,-981.87,0.00035996,2]
[387810158,1758886234058,-635.0,0.00035996,2]
[387810159,1758886234068,-2160.0,0.00035996,2]
[387810160,1758886234078,-611.74,0.00036164,120]
[387810161,1758886234087,-344.0,0.00036366,2]
[387810162,1758886234096,-168.0,0.00036442,7]
[387810163,1758886234105,-4586.0,0.00036639,2]
[387810164,1758886234115,-168.0,0.0003691,2]
[387810165,1758886234125,-296.8483435,0.00036939,30]
[387810166,1758886234134,-296.8483435,0.00036939,30]
[387810167,1758886234144,-296.8483435,0.00036939,30]
[387810168,1758886234154,-296.5529887,0.00036939,30]
[387810169,1758886234164,-153.0,0.00036939,30]
[387810170,1758886234174,-189.1051805,0.00036939,30]
[387810171,1758886234183,-153.0,0.00036939,30]
[387810172,1758886234194,-189.1051805,0.00036939,30]
[387810173,1758886234203,-153.0,0.00036939,30]
[387810174,1758886234213,-611.74,0.00036986,120]
[387810175,1758886234223,-153.0,0.00036986,30]
[387810176,1758886234234,-438.0000524,0.00036986,30]
[387810177,1758886234244,-210.70990657,0.00037,120]
[387810178,1758886234253,-156.96730782,0.00037054,14]
[387810179,1758886234262,-168.0,0.00037071,2]
[387810180,1758886234271,-168.0,0.0003714,2]
[387810181,1758886234280,-150.0,0.000372,2]
[387810182,1758886234289,-248.79,0.000372,2]
[387810183,1758886234298,-168.0,0.00037539,2]
[387810184,1758886234308,-376.16810556,0.00037662,29]
[387810185,1758886234316,-168.0,0.0003778,2]
[387810186,1758886234325,-289.6,0.000378,2]
[387810187,1758886234333,-611.74,0.00037808,120]
[387810188,1758886234342,-168.0,0.00037869,2]
[387810189,1758886234352,-168.0,0.00038167,2]
[387810190,1758886234361,-696.38299744,0.00038256,2]
[387810191,1758886234370,-7553.66971915,0.00038256,2]
[387810192,1758886234380,-804.86574371,0.00038336,3]
[387810193,1758886234389,-3219.46297484,0.00038346,3]
[387810194,1758886234399,-502.09635083,0.00038355,120]
[387810195,1758886234409,-483.1144434,0.00038356,30]
[387810196,1758886234419,-480.0,0.00038356,30]
[387810197,1758886234428,-480.0,0.00038356,30]
[387810198,1758886234438,-257.42453929,0.00038356,30]
[387810199,1758886234448,-200.0,0.00038356,30]
[387810200,1758886234458,-480.0,0.00038356,30]
[387810201,1758886234468,-480.0,0.00038356,30]
[387810202,1758886234478,-480.0,0.00038356,30]
[387810203,1758886234488,-480.0,0.00038356,30]
[387810204,1758886234498,-410.03094977,0.00038356,30]
[387810205,1758886234508,-480.0,0.00038356,30]
[387810206,1758886234518,-480.0,0.00038356,30]
[387810207,1758886234527,-542.43840197,0.00038356,30]
[387810208,1758886234537,-480.0,0.00038356,30]
[387810209,1758886234547,-483.16878399,0.00038356,30]
[387810210,1758886234556,-480.0,0.00038356,30]
[387810211,1758886234566,-483.18885709,0.00038356,30]
[387810212,1758886234575,-497.75046297,0.00038356,30]
[387810213,1758886234584,-480.0,0.00038356,30]
[387810214,1758886234594,-480.0,0.00038356,30]
[387810215,1758886234603,-484.19287944,0.00038356,30]
[387810216,1758886234613,-480.0,0.00038356,30]
[387810217,1758886234623,-480.0,0.00038356,30]
[387810218,1758886234634,-480.0,0.00038356,30]
[387810219,1758886234643,-480.0,0.00038356,30]
[387810220,1758886234653,-480.0,0.00038356,30]
[387810221,1758886234664,-160.0,0.00038356,30]
[387810222,1758886234674,-480.0,0.00038356,30]
[387810223,1758886234684,-480.0,0.00038356,30]
[387810224,1758886234694,-480.0,0.00038356,30]
[387810225,1758886234703,-480.0,0.00038356,30]
[387810226,1758886234714,-480.0,0.00038356,30]
[387810227,1758886234728,-480.0,0.00038356,30]
[387810228,1758886234739,-160.0,0.00038356,30]
[387810229,1758886234747,-410.79152184,0.00038356,30]
[387810230,1758886234755,-591.33956,0.00038356,30]
[387810231,1758886234764,-488.76742202,0.00038356,30]
[387810232,1758886234773,-484.87414052,0.00038356,30]
[387810233,1758886234782,-450.69882368,0.00038356,30]
[387810234,1758886234791,-480.0,0.00038356,30]
[387810235,1758886234800,-417.15472785,0.00038356,30]
[387810236,1758886234810,-480.0,0.00038356,30]
[387810237,1758886234818,-487.6428177,0.00038356,30]
[387810238,1758886234828,-486.51472971,0.00038356,30]
[387810239,1758886234838,-480.0,0.00038356,30]
[387810240,1758886234847,-480.0,0.00038356,30]
[387810241,1758886234859,-480.0,0.00038356,30]
[387810242,1758886234870,-480.0,0.00038356,30]
[387810243,1758886234879,-1185.5,0.00038356,30]
[387810244,1758886234888,-480.0,0.00038356,30]
[387810245,1758886234898,-716.53,0.00038356,30]
[387810246,1758886234909,-480.0,0.00038356,30]
[387810247,1758886234918,-518.02,0.00038356,30]
[387810248,1758886234927,-480.0,0.00038356,30]
[387810249,1758886234938,-480.0,0.00038356,30]
[387810250,1758886234947,-484.23699544,0.00038356,30]
[387810251,1758886234956,-480.0,0.00038356,30]
[387810252,1758886234966,-480.9539855,0.00038356,30]
[387810253,1758886234975,-164.62,0.00038356,2]
[387810254,1758886234985,-480.0,0.00038356,30]
[387810255,1758886234995,-548.41,0.00038356,30]
[387810256,1758886235004,-480.0,0.00038356,30]
[387810257,1758886235014,-480.0,0.00038356,30]
[387810258,1758886235023,-465.7770825,0.00038356,30]
[387810259,1758886235033,-480.0,0.00038356,30]
[387810260,1758886235042,-480.0,0.00038356,30]
[387810261,1758886235052,-518.77840311,0.00038356,30]
[387810262,1758886235061,-480.0,0.00038356,30]
[387810263,1758886235070,-1173.31,0.00038356,30]
[387810264,1758886235080,-480.0,0.00038356,30]
[387810265,1758886235089,-480.0,0.00038356,30]
[387810266,1758886235099,-487.16817243,0.00038356,30]
[387810267,1758886235108,-480.0,0.00038356,30]
[387810268,1758886235117,-489.62023792,0.00038356,30]
[387810269,1758886235126,-480.0,0.00038356,30]
[387810270,1758886235135,-480.0,0.00038356,30]
[387810271,1758886235145,-480.0,0.00038356,30]
[387810272,1758886235154,-480.0,0.00038356,30]
[387810273,1758886235164,-182.66137337,0.00038356,30]
[387810274,1758886235173,-360.72963938,0.00038356,30]
[387810275,1758886235182,-480.0,0.00038356,30]
[387810276,1758886235192,-480.0,0.00038356,30]
[387810277,1758886235201,-480.0,0.00038356,30]
[387810278,1758886235210,-480.0,0.00038356,30]
[387810279,1758886235219,-480.0,0.00038356,30]
[387810280,1758886235228,-480.0,0.00038356,30]
[387810281,1758886235238,-480.0,0.00038356,30]
[387810282,1758886235247,-480.0,0.00038356,30]
[387810283,1758886235257,-483.84566151,0.00038356,30]
[387810284,1758886235267,-480.0,0.00038356,30]
[387810285,1758886235276,-480.0,0.00038356,30]
[387810286,1758886235285,-951.8,0.00038356,30]
[387810287,1758886235373,-482.46478386,0.00038356,30]
[387810288,1758886235383,-480.0,0.00038356,30]
[387810289,1758886235392,-480.0,0.00038356,30]
[387810290,1758886235402,-480.0,0.00038356,30]
[387810291,1758886235411,-480.0,0.00038356,30]
[387810292,1758886235420,-480.0,0.00038356,30]
[387810293,1758886235429,-480.0,0.00038356,30]
[387810294,1758886235438,-480.0,0.00038356,30]
[387810295,1758886235448,-480.0,0.00038356,30]
[387810296,1758886235457,-480.0,0.00038356,30]
[387810297,1758886235467,-480.0,0.00038356,30]
[387810298,1758886235476,-480.0,0.00038356,30]
[387810299,1758886235486,-480.0,0.00038356,30]
[387810300,1758886235495,-480.0,0.00038356,30]
[387810301,1758886235505,-1250.3,0.00038356,30]
[387810302,1758886235514,-480.0,0.00038356,30]
[387810303,1758886235523,-480.0,0.00038356,30]
[387810304,1758886235533,-481.65769621,0.00038356,30]
[387810305,1758886235542,-481.34155722,0.00038356,30]
[387810306,1758886235552,-480.0,0.00038356,30]
[387810307,1758886235561,-480.0,0.00038356,30]
[387810308,1758886235570,-480.0,0.00038356,30]
[387810309,1758886235579,-480.0,0.00038356,30]
[387810310,1758886235589,-480.0,0.00038356,30]
[387810311,1758886235599,-480.0,0.00038356,30]
[387810312,1758886235608,-483.38412015,0.00038356,30]
[387810313,1758886235616,-480.0,0.00038356,30]
[387810314,1758886235626,-480.0,0.00038356,30]
[387810315,1758886235635,-480.0,0.00038356,30]
[387810316,1758886235644,-480.0,0.00038356,30]
[387810317,1758886235653,-480.0,0.00038356,30]
[387810318,1758886235662,-480.0,0.00038356,30]
[387810319,1758886235672,-480.0,0.00038356,30]
[387810320,1758886235681,-480.0,0.00038356,30]
[387810321,1758886235691,-480.0,0.00038356,30]
[387810322,1758886235700,-482.20331538,0.00038356,30]
[387810323,1758886235709,-480.0,0.00038356,30]
[387810324,1758886235718,-480.0,0.00038356,30]
[387810325,1758886235728,-480.0,0.00038356,30]
[387810326,1758886235739,-480.0,0.00038356,30]
[387810327,1758886235748,-480.0,0.00038356,30]
[387810328,1758886235757,-500.0,0.00038356,90]
[387810329,1758886235766,-491.01877197,0.00038356,30]
[387810330,1758886235775,-178.80251672,0.00038356,30]
[387810331,1758886235784,-480.0,0.00038356,30]
[387810332,1758886235793,-480.0,0.00038356,30]
[387810333,1758886235802,-480.0,0.00038356,30]
[387810334,1758886235810,-481.1083124,0.00038356,30]
[387810335,1758886235820,-480.0,0.00038356,30]
[387810336,1758886235829,-480.0,0.00038356,30]
[387810337,1758886235838,-480.0,0.00038356,30]
[387810338,1758886235849,-480.0,0.00038356,30]
[387810339,1758886235860,-480.0,0.00038356,30]
[387810340,1758886235870,-485.64288909,0.00038356,30]
[387810341,1758886235879,-480.0,0.00038356,30]
[387810342,1758886235888,-480.0,0.00038356,30]
[387810343,1758886235896,-480.85239775,0.00038356,30]
[387810344,1758886235905,-487.29723889,0.00038356,30]
[387810345,1758886235915,-480.0,0.00038356,30]
[387810346,1758886235923,-531.24,0.00038356,30]
[387810347,1758886235934,-480.0,0.00038356,30]
[387810348,1758886235943,-481.13620158,0.00038356,30]
[387810349,1758886235952,-480.0,0.00038356,30]
[387810350,1758886235961,-480.0,0.00038356,30]
[387810351,1758886235971,-480.0,0.00038356,30]
[387810352,1758886235980,-480.0,0.00038356,30]
[387810353,1758886235991,-480.0,0.00038356,30]
[387810354,1758886236003,-480.0,0.00038356,30]
[387810355,1758886236012,-480.0,0.00038356,30]
[387810356,1758886236023,-480.0,0.00038356,30]
[387810357,1758886236033,-480.0,0.00038356,30]
[387810358,1758886236042,-600.0,0.00038356,30]
[387810359,1758886236052,-480.0,0.00038356,30]
[387810360,1758886236061,-519.19,0.00038356,30]
[387810361,1758886236070,-483.17317686,0.00038356,30]
[387810362,1758886236080,-240.74080107,0.00038356,30]
[387810363,1758886236089,-480.0,0.00038356,30]
[387810364,1758886236099,-480.0,0.00038356,30]
[387810365,1758886236108,-480.0,0.00038356,30]
[387810366,1758886236117,-480.0,0.00038356,30]
[387810367,1758886236126,-1257.23,0.00038356,30]
[387810368,1758886236135,-480.0,0.00038356,30]
[387810369,1758886236145,-480.0,0.00038356,30]
[387810370,1758886236159,-229.59682972,0.00038356,30]
[387810371,1758886236176,-480.0,0.00038356,30]
[387810372,1758886236185,-480.63176707,0.00038356,30]
[387810373,1758886236194,-482.12418081,0.00038356,30]
[387810374,1758886236204,-480.0,0.00038356,30]
[387810375,1758886236213,-480.0,0.00038356,30]
[387810376,1758886236223,-482.16135161,0.00038356,30]
[387810377,1758886236233,-483.19010131,0.00038356,30]
[387810378,1758886236242,-480.0,0.00038356,30]
[387810379,1758886236251,-482.27899213,0.00038356,30]
[387810380,1758886236260,-531.08,0.00038356,30]
[387810381,1758886236271,-480.0,0.00038356,30]
[387810382,1758886236281,-480.0,0.00038356,30]
[387810383,1758886236290,-480.0,0.00038356,30]
[387810384,1758886236299,-480.0,0.00038356,30]
[387810385,1758886236309,-480.0,0.00038356,30]
[387810386,1758886236318,-486.72423235,0.00038356,30]
[387810387,1758886236327,-480.0,0.00038356,30]
[387810388,1758886236337,-480.0,0.00038356,30]
[387810389,1758886236346,-480.0,0.00038356,30]
[387810390,1758886236356,-480.0,0.00038356,30]
[387810391,1758886236365,-480.0,0.00038356,30]
[387810392,1758886236374,-480.0,0.00038356,30]
[387810393,1758886236384,-480.0,0.00038356,30]
[387810394,1758886236393,-529.52336872,0.00038356,30]
[387810395,1758886236403,-4563.8,0.00038356,30]
[387810396,1758886236411,-1140.79,0.00038356,30]
[387810397,1758886236420,-1477.84,0.00038356,30]
[387810398,1758886236430,-483.79899324,0.00038356,30]
[387810399,1758886236439,-949.16,0.00038356,30]
[387810400,1758886236448,-480.0,0.00038356,30]
[387810401,1758886236458,-491.74218483,0.00038356,30]
[387810402,1758886236467,-927.1,0.00038356,30]
[387810403,1758886236476,-2921.82,0.00038356,30]
[387810404,1758886236485,-1657.92,0.00038356,30]
[387810405,1758886236495,-437.38140514,0.00038356,30]
[387810406,1758886236504,-914.89,0.00038356,30]
[387810407,1758886236513,-480.0,0.00038356,30]
[387810408,1758886236523,-480.0,0.00038356,30]
[387810409,1758886236532,-480.0,0.00038356,30]
[387810410,1758886236543,-480.0,0.00038356,30]
[387810411,1758886236553,-480.0,0.00038356,30]
[387810412,1758886236563,-480.0,0.00038356,30]
[387810413,1758886236573,-480.0,0.00038356,30]
[387810414,1758886236582,-480.0,0.00038356,30]
[387810415,1758886236592,-480.0,0.00038356,30]
[387810416,1758886236602,-480.0,0.00038356,30]
[387810417,1758886236612,-2209.22,0.00038356,30]
[387810418,1758886236623,-480.0,0.00038356,30]
[387810419,1758886236632,-480.0,0.00038356,30]
[387810420,1758886236642,-480.0,0.00038356,30]
[387810421,1758886236652,-484.15659557,0.00038356,30]
[387810422,1758886236662,-480.0,0.00038356,30]
[387810423,1758886236671,-480.0,0.00038356,30]
[387810424,1758886236681,-480.0,0.00038356,30]
[387810425,1758886236692,-480.0,0.00038356,30]
[387810426,1758886236701,-480.0,0.00038356,30]
[387810427,1758886236710,-480.0,0.00038356,30]
[387810428,1758886236719,-480.0,0.00038356,30]
[387810429,1758886236729,-480.0,0.00038356,30]
[387810430,1758886236740,-480.0,0.00038356,30]
[387810431,1758886236750,-488.1574146,0.00038356,30]
[387810432,1758886236760,-480.0,0.00038356,30]
[387810433,1758886236771,-480.0,0.00038356,30]
[387810434,1758886236781,-480.0,0.00038356,30]
[387810435,1758886236790,-484.96768456,0.00038356,30]
[387810436,1758886236800,-480.0,0.00038356,30]
[387810437,1758886236809,-480.0,0.00038356,30]
[387810438,1758886236818,-480.0,0.00038356,30]
[387810439,1758886236828,-481.61700171,0.00038356,30]
[387810440,1758886236838,-480.0,0.00038356,30]
[387810441,1758886236847,-480.0,0.00038356,30]
[387810442,1758886236861,-480.0,0.00038356,30]
[387810443,1758886236877,-480.0,0.00038356,30]
[387810444,1758886236886,-775.73,0.00038356,30]
[387810445,1758886236895,-667.41,0.00038356,30]
[387810446,1758886236903,-1804.54,0.00038356,30]
[387810447,1758886236912,-480.0,0.00038356,30]
[387810448,1758886236922,-480.0,0.00038356,30]
[387810449,1758886236931,-480.0,0.00038356,30]
[387810450,1758886236940,-890.02,0.00038356,30]
[387810451,1758886236949,-480.0,0.00038356,30]
[387810452,1758886236958,-480.0,0.00038356,30]
[387810453,1758886236968,-911.51,0.00038356,30]
[387810454,1758886236977,-480.0,0.00038356,30]
[387810455,1758886236986,-480.0,0.00038356,30]
[387810456,1758886236995,-483.81428885,0.00038356,30]
[387810457,1758886237004,-500.0,0.00038356,30]
[387810458,1758886237013,-500.0,0.00038356,30]
[387810459,1758886237022,-500.0,0.00038356,30]
[387810460,1758886237031,-500.0,0.00038356,30]
[387810461,1758886237040,-480.0,0.00038356,30]
[387810462,1758886237049,-500.0,0.00038356,30]
[387810463,1758886237061,-3647.69,0.00038356,30]
[387810464,1758886237072,-1929.82,0.00038356,30]
[387810465,1758886237081,-482.17818593,0.00038356,30]
[387810466,1758886237097,-480.88757044,0.00038356,30]
[387810467,1758886237107,-480.0,0.00038356,30]
[387810468,1758886237192,-482.01296252,0.00038356,30]
[387810469,1758886237202,-1139.95,0.00038356,30]
[387810470,1758886237211,-480.0,0.00038356,30]
[387810471,1758886237220,-480.0,0.00038356,30]
[387810472,1758886237230,-480.0,0.00038356,30]
[387810473,1758886237241,-481.69698349,0.00038356,30]
[387810474,1758886237250,-481.2820808,0.00038356,30]
[387810475,1758886237260,-480.0,0.00038356,30]
[387810476,1758886237269,-480.0,0.00038356,30]
[387810477,1758886237278,-480.0,0.00038356,30]
[387810478,1758886237287,-480.0,0.00038356,30]
[387810479,1758886237295,-672.24,0.00038356,30]
[387810480,1758886237304,-480.0,0.00038356,30]
[387810481,1758886237313,-480.0,0.00038356,30]
[387810482,1758886237322,-480.0,0.00038356,30]
[387810483,1758886237331,-480.42878358,0.00038356,30]
[387810484,1758886237340,-480.0,0.00038356,30]
[387810485,1758886237350,-482.43442941,0.00038356,30]
[387810486,1758886237360,-1456.76,0.00038356,30]
[387810487,1758886237368,-480.0,0.00038356,30]
[387810488,1758886237377,-1256.61,0.00038356,30]
[387810489,1758886237386,-480.0,0.00038356,30]
[387810490,1758886237396,-480.0,0.00038356,30]
[387810491,1758886237405,-483.19409906,0.00038356,30]
[387810492,1758886237414,-480.0,0.00038356,30]
[387810493,1758886237423,-480.51023741,0.00038356,30]
[387810494,1758886237432,-480.0,0.00038356,30]
[387810495,1758886237441,-480.0,0.00038356,30]
[387810496,1758886237450,-1058.01,0.00038356,30]
[387810497,1758886237459,-480.0,0.00038356,30]
[387810498,1758886237468,-531.16,0.00038356,30]
[387810499,1758886237477,-480.0,0.00038356,30]
[387810500,1758886237488,-707.41,0.00038356,30]
[387810501,1758886237498,-480.0,0.00038356,30]
[387810502,1758886237508,-481.34715772,0.00038356,30]
[387810503,1758886237517,-480.0,0.00038356,30]
[387810504,1758886237526,-480.0,0.00038356,30]
[387810505,1758886237535,-480.0,0.00038356,30]
[387810506,1758886237544,-480.0,0.00038356,30]
[387810507,1758886237553,-480.0,0.00038356,30]
[387810508,1758886237563,-480.0,0.00038356,30]
[387810509,1758886237572,-461.24409182,0.00038356,30]
[387810510,1758886237582,-482.28562423,0.00038356,30]
[387810511,1758886237591,-480.0,0.00038356,30]